{"text_format":"1","workbook":"xlsx","n_sheets":2,"sheets":["Register your devices","Gerätetyp"],"not_rendered":{"charts":0,"images":0,"macros":1,"external_links":0,"defined_names":3,"comments":0,"pivot_tables":0},"unopened":[],"bounds":{"document_bytes":16777216,"sheet_cells":100000,"rows_first":2000,"rows_last":500,"rows_between":2000,"halvings":0,"cell_chars":16384,"cell_head_chars":4096},"cells_cut":0,"cells_raw":0,"read":"whole","date_system":"1900"}

{"sheet":"Register your devices","index":0,"n_rows":52,"n_cols":10,"rows_kept":52,"cut":false,"hidden":false,"merged":[[2,9,14,14],[0,1,0,7]]}
["Company Name:","[please fill in company name]"]
["Mobile phone number*","IMEI*","SAP number*","Device name* (Devices not in the list cannot be added)","Kaufdatum*","Benutzer-Email (optional)","User-Last-Name (optional)","User-Name (optional)"]
["+41791234567","35-223344-555777-1",{"$f":"VLOOKUP(D3,Gerätetyp!A:B,2,FALSE)","v":11026492},"iPhone 8 4G+ Space Gray 64GB","01.02.2019","hans@mustermann.ch","Mustermann","Hans",null,"When you have more than 50 devices, which you want to include, please reuse this form."]
[null,null,{"$f":"VLOOKUP(D4,Gerätetyp!A:B,2,FALSE)","v":{"$error":"#N/A"}}]
[null,null,{"$f":"VLOOKUP(D5,Gerätetyp!A:B,2,FALSE)","v":{"$error":"#N/A"}}]
[null,null,{"$f":"VLOOKUP(D6,Gerätetyp!A:B,2,FALSE)","v":{"$error":"#N/A"}}]
[null,null,{"$f":"VLOOKUP(D7,Gerätetyp!A:B,2,FALSE)","v":{"$error":"#N/A"}}]
[null,null,{"$f":"VLOOKUP(D8,Gerätetyp!A:B,2,FALSE)","v":{"$error":"#N/A"}}]
[null,null,{"$f":"VLOOKUP(D9,Gerätetyp!A:B,2,FALSE)","v":{"$error":"#N/A"}}]
[null,null,{"$f":"VLOOKUP(D10,Gerätetyp!A:B,2,FALSE)","v":{"$error":"#N/A"}}]
[null,null,{"$f":"VLOOKUP(D11,Gerätetyp!A:B,2,FALSE)","v":{"$error":"#N/A"}}]
[null,null,{"$f":"VLOOKUP(D12,Gerätetyp!A:B,2,FALSE)","v":{"$error":"#N/A"}}]
[null,null,{"$f":"VLOOKUP(D13,Gerätetyp!A:B,2,FALSE)","v":{"$error":"#N/A"}}]
[null,null,{"$f":"VLOOKUP(D14,Gerätetyp!A:B,2,FALSE)","v":{"$error":"#N/A"}}]
[null,null,{"$f":"VLOOKUP(D15,Gerätetyp!A:B,2,FALSE)","v":{"$error":"#N/A"}}]
[null,null,{"$f":"VLOOKUP(D16,Gerätetyp!A:B,2,FALSE)","v":{"$error":"#N/A"}}]
[null,null,{"$f":"VLOOKUP(D17,Gerätetyp!A:B,2,FALSE)","v":{"$error":"#N/A"}}]
[null,null,{"$f":"VLOOKUP(D18,Gerätetyp!A:B,2,FALSE)","v":{"$error":"#N/A"}}]
[null,null,{"$f":"VLOOKUP(D19,Gerätetyp!A:B,2,FALSE)","v":{"$error":"#N/A"}}]
[null,null,{"$f":"VLOOKUP(D20,Gerätetyp!A:B,2,FALSE)","v":{"$error":"#N/A"}}]
[null,null,{"$f":"VLOOKUP(D21,Gerätetyp!A:B,2,FALSE)","v":{"$error":"#N/A"}}]
[null,null,{"$f":"VLOOKUP(D22,Gerätetyp!A:B,2,FALSE)","v":{"$error":"#N/A"}}]
[null,null,{"$f":"VLOOKUP(D23,Gerätetyp!A:B,2,FALSE)","v":{"$error":"#N/A"}}]
[null,null,{"$f":"VLOOKUP(D24,Gerätetyp!A:B,2,FALSE)","v":{"$error":"#N/A"}}]
[null,null,{"$f":"VLOOKUP(D25,Gerätetyp!A:B,2,FALSE)","v":{"$error":"#N/A"}}]
[null,null,{"$f":"VLOOKUP(D26,Gerätetyp!A:B,2,FALSE)","v":{"$error":"#N/A"}}]
[null,null,{"$f":"VLOOKUP(D27,Gerätetyp!A:B,2,FALSE)","v":{"$error":"#N/A"}}]
[null,null,{"$f":"VLOOKUP(D28,Gerätetyp!A:B,2,FALSE)","v":{"$error":"#N/A"}}]
[null,null,{"$f":"VLOOKUP(D29,Gerätetyp!A:B,2,FALSE)","v":{"$error":"#N/A"}}]
[null,null,{"$f":"VLOOKUP(D30,Gerätetyp!A:B,2,FALSE)","v":{"$error":"#N/A"}}]
[null,null,{"$f":"VLOOKUP(D31,Gerätetyp!A:B,2,FALSE)","v":{"$error":"#N/A"}}]
[null,null,{"$f":"VLOOKUP(D32,Gerätetyp!A:B,2,FALSE)","v":{"$error":"#N/A"}}]
[null,null,{"$f":"VLOOKUP(D33,Gerätetyp!A:B,2,FALSE)","v":{"$error":"#N/A"}}]
[null,null,{"$f":"VLOOKUP(D34,Gerätetyp!A:B,2,FALSE)","v":{"$error":"#N/A"}}]
[null,null,{"$f":"VLOOKUP(D35,Gerätetyp!A:B,2,FALSE)","v":{"$error":"#N/A"}}]
[null,null,{"$f":"VLOOKUP(D36,Gerätetyp!A:B,2,FALSE)","v":{"$error":"#N/A"}}]
[null,null,{"$f":"VLOOKUP(D37,Gerätetyp!A:B,2,FALSE)","v":{"$error":"#N/A"}}]
[null,null,{"$f":"VLOOKUP(D38,Gerätetyp!A:B,2,FALSE)","v":{"$error":"#N/A"}}]
[null,null,{"$f":"VLOOKUP(D39,Gerätetyp!A:B,2,FALSE)","v":{"$error":"#N/A"}}]
[null,null,{"$f":"VLOOKUP(D40,Gerätetyp!A:B,2,FALSE)","v":{"$error":"#N/A"}}]
[null,null,{"$f":"VLOOKUP(D41,Gerätetyp!A:B,2,FALSE)","v":{"$error":"#N/A"}}]
[null,null,{"$f":"VLOOKUP(D42,Gerätetyp!A:B,2,FALSE)","v":{"$error":"#N/A"}}]
[null,null,{"$f":"VLOOKUP(D43,Gerätetyp!A:B,2,FALSE)","v":{"$error":"#N/A"}}]
[null,null,{"$f":"VLOOKUP(D44,Gerätetyp!A:B,2,FALSE)","v":{"$error":"#N/A"}}]
[null,null,{"$f":"VLOOKUP(D45,Gerätetyp!A:B,2,FALSE)","v":{"$error":"#N/A"}}]
[null,null,{"$f":"VLOOKUP(D46,Gerätetyp!A:B,2,FALSE)","v":{"$error":"#N/A"}}]
[null,null,{"$f":"VLOOKUP(D47,Gerätetyp!A:B,2,FALSE)","v":{"$error":"#N/A"}}]
[null,null,{"$f":"VLOOKUP(D48,Gerätetyp!A:B,2,FALSE)","v":{"$error":"#N/A"}}]
[null,null,{"$f":"VLOOKUP(D49,Gerätetyp!A:B,2,FALSE)","v":{"$error":"#N/A"}}]
[null,null,{"$f":"VLOOKUP(D50,Gerätetyp!A:B,2,FALSE)","v":{"$error":"#N/A"}}]
[null,null,{"$f":"VLOOKUP(D51,Gerätetyp!A:B,2,FALSE)","v":{"$error":"#N/A"}}]
[null,null,{"$f":"VLOOKUP(D52,Gerätetyp!A:B,2,FALSE)","v":{"$error":"#N/A"}}]

{"sheet":"Gerätetyp","index":1,"n_rows":76,"n_cols":2,"rows_kept":76,"cut":false,"hidden":true,"merged":[]}
["Device-name","SAP-Number"]
["CAT B30 Black",11012031]
["CAT B35 4G Black",11037189]
["CAT S62 PRO DUALSIM 4G+ BLACK",11047797]
["Huawei P30 Pro DualSIM 4G+ Black",11039632]
["iPad 9.7 4G+ Space Grey 32GB",11029886]
["iPad Air 2 4G Space Grey 16GB",10228548]
["iPad Pro 10.5 4G+ Space Grey 64GB",11025684]
["iPad Pro 11 4G+ Space Grey 256GB",11038022]
["iPhone 7 32 GB diamantschwarz",11026510]
["iPhone 7 4G Black 32GB",11015412]
["iPhone 7 4G+ Black 128GB",11015413]
["iPhone 7 4G+ Diam Black 128GB",11015415]
["iPhone 7 4G+ Silver 128GB",11015418]
["iPhone 7 Plus 4G+ Black 128GB",11015427]
["iPhone 8 256 GB silver",11026496]
["iPhone 8 4G+ Space Gray 256GB",11026495]
["iPhone 8 4G+ Space Gray 64GB",11026492]
["iPhone 8 64 GB silver",11026493]
["iPhone 8 Plus 4G+ Space Gray 256GB",11026501]
["iPhone 8 Plus 4G+ Space Gray 64GB",11026498]
["iPhone X 256 GB silber",11026507]
["iPhone X 4G+ Space Gray 256GB",11026506]
["iPhone X 4G+ Space Gray 64GB",11026504]
["iPhone XR 4G+ Black 128GB",11036614]
["iPhone XR 4G+ Black 256GB",11036620]
["iPhone XR 4G+ Black 64GB",11036608]
["iPhone XR 4G+ White 128GB",11036615]
["iPhone XS 4G+ Silver 64GB",11036591]
["iPhone XS 4G+ Space Gray 256GB",11036593]
["iPhone XS 4G+ Space Gray 64GB",11036590]
["iPhone XS Max 4G+ Space Gray 256GB",11036602]
["Apple iPhone 11 Black 64GB",11042350]
["Apple iPhone 11 White 64GB",11042351]
["Apple iPhone 11 Black 128GB",11042356]
["Apple iPhone 11 White 128GB",11042357]
["Apple iPhone 11 Black 256GB",11042362]
["Apple iPhone 11 Pro Space Grey 64GB",11042368]
["Apple iPhone 11 Pro Silver 64GB",11042369]
["Apple iPhone 11 Pro Gold 64GB",11042370]
["Apple iPhone 11 Pro Midnight Green 64 GB",11042371]
["Apple iPhone 11 Pro Space Grey 256GB",11042372]
["Apple iPhone 11 Pro Silver 256GB",11042373]
["Apple iPhone 11 Pro Gold 256GB",11042374]
["Apple iPhone 11 Pro Midnight Green 256 GB",11042375]
["Apple iPhone 11 Pro Max Space Grey 64GB",11042380]
["Apple iPhone 11 Pro Max Midnight Green 64 GB",11042383]
["Apple iPhone 11 Pro Max Space Grey 256GB",11042384]
["Apple iPhone 11 Pro Max 256 GB silber",11042385]
["Apple iPhone 11 Pro Max Midnight Green 256 GB",11042387]
["Apple iPhone SE (2020) 64GB Black",11045065]
["Apple iPhone SE (2020) 64GB White",11045066]
["Apple iPhone SE (2020) 128GB Black",11045067]
["Apple iPhone SE (2020) 128GB White",11045068]
["Apple iPhone SE (2020) 256GB Black",11045080]
["Samsung A320 Galaxy A3 4G+ Black",11021502]
["Samsung A405 Galaxy A40 4G+ Black 64GB",11039607]
["Samsung A415Galaxy A41 4G Black 64GB",11045748]
["Samsung A505 Galaxy A50 4G+ Black 128GB",11039605]
["Samsung A515 Galaxy A51 4G+ Black 128GB",11044760]
["Samsung A530 Galaxy A8 Dual-SIM schwarz",11028273]
["Samsung G390 Galaxy XCover4 Black",11024176]
["Samsung SM-G398 Galaxy XCover4s Black",11041430]
["Samsung G930 Galaxy S7 4G+ Black",11004311]
["Samsung G950 Galaxy S8 Midnight Black",11023726]
["Samsung G960 Galaxy S9 4G+ Black",11028439]
["Samsung G965 Galaxy S9+ 4G+ Black",11028472]
["Samsung G970 Galaxy S10e 4G+ black 128GB",11038893]
["Samsung G973 Galaxy S10 4G+ black 128GB",11038890]
["Samsung G975 Galaxy S10+ 4G+ black 128GB",11038877]
["Samsung G981 Galaxy S20 5G Gray 128GB",11044863]
["Samsung G986 Galaxy S20+ 5G Gray 128GB",11044867]
["Samsung G986 Galaxy S20+ 5G Black 128GB",11044868]
["Samsung G986 Galaxy S20+ 5G White 128GB",11044880]
["Samsung G988 Galaxy S20Ultra 5G GR 128GB",11044881]
["Samsung G988 Galaxy S20Ultra 5G BK 128GB",11044882]